{"text_format":"3","workbook":"xlsx","n_sheets":7,"sheets":["BOQ Cover Page","Schedule A - OHS","Schedule B - ARCHITECTURE ","Schedule C - ELECTRICAL","Schedule D - MECHANICAL ","Summary","Mechanical"],"not_rendered":{"images":1,"external_links":3,"defined_names":210},"read":"whole","date_system":"1900"}

{"sheet":"BOQ Cover Page","index":0,"n_rows":0,"n_cols":0,"rows_kept":0}

{"sheet":"Schedule A - OHS","index":1,"n_rows":32,"n_cols":7,"rows_kept":32,"merged":[[1,0,2,1],[1,2,2,5],[2,9,2,11],[3,9,3,11],[4,0,5,0],[4,1,5,1],[4,5,5,5],[25,0,25,6],[26,2,26,5],[27,2,27,5],[28,2,28,5],[29,2,29,5],[30,2,30,5],[31,1,31,5]]}
[{"$nulls":6},10404747]
[null,null," ALTERATIONS FOR CHEMISTRY LABORATORY - VEREENIGING ANALYTICAL SERVICES  "]
[]
[{"$nulls":6},"Schedule A: OHS"]
["Item   No.","Payment Refers","Description","Unit","Qty","Rate","Total Amount"]
[]
[]
[]
[null,null,"SECTION C :  OCCUPATIONAL HEALTH AND SAFETY AND ENVIRONMENT"]
[{"$nulls":4},"``"]
["C.1","PSA 8.11","OCCUPATIONAL HEALTH AND SAFETY"]
[]
["A.1.1","2.4 & 2.5.","Preparation of the Contractor's site specific Health and Safety Plan","Sum",1]
[]
["A.1.2","10.d","Provision of Personal Protective Equipment (PPE)","Sum",1]
[]
[]
["A.1.3","24 C09","Transportation of Workers","Sum",1]
[]
["A.1.4","Part B 10 a ","Safety notices and signs","Sum",1]
[]
["A.1.5",2.9,"Submission of the Health and Safety File (hard and soft copies)","Sum",1]
[]
[null,null,"Total amount carried forward to Schedule A Summary"]
[]
["SCHEDULE C SUMMARY "]
["No","Payment refers","Description",{"$nulls":3},"Amount"]
["A.1",null,"OCCUPATIONAL HEALTH AND SAFETY"]
[]
[]
[]
[null,"Total amount excluding Value-Added Tax (VAT) to be carried to Summary of Price Schedules "]

{"sheet":"Schedule B - ARCHITECTURE ","index":2,"n_rows":446,"n_cols":7,"rows_kept":446,"merged":[[1,0,2,1],[1,2,2,5],[2,9,2,11],[3,9,3,11],[4,0,5,0],[4,1,5,1],[4,5,5,5],[433,0,433,6],[434,2,434,5],[435,2,435,5],[436,2,436,5],[437,2,437,5],[438,2,438,5],[439,2,439,5],[440,2,440,5],[441,2,441,5],[442,2,442,5],[443,2,443,5],[444,2,444,5],[445,1,445,5]]}
[{"$nulls":6},10404747]
[null,null," ALTERATIONS FOR CHEMISTRY LABORATORY - VEREENIGING ANALYTICAL SERVICES  "]
[{"$nulls":6},"B - Architecture"]
[{"$nulls":6},"Schedule E: ARCHITECTURE"]
["Item   No.","Payment Refers","Description","Unit","Qty","Rate","Total Amount"]
[]
[]
["1",null,"SECTION 1 : DESIGN"]
[]
[null,null,"Preambles"]
[null,null,"Tenderers are advised to study the applicable engineering and  architectural drawings, specifications and the \"Model Preambles for  Trades\" before pricing this bill"]
[]
[null,null,"Supplementary preambles"]
[null,null,"Design of all items forming part of the architectural scope of"]
[null,null,"works which shall include but not be limited to, drawings,"]
[null,null,"calculations, schedules, documentation, BOQ's, as built "]
[null,null,"(record) drawings, close out reports and manuals"]
[null,null,"Also refer to architectural general specifications document for further details"]
[]
[1.1,null,"Detail Design"]
[]
["1.1.1",null,"Detailed design submission, review and approval","Sum",{"v":1,"d":"1.00"}]
[]
["1.1.2",null,"Design report","Sum",{"v":1,"d":"1.00"}]
[]
["1.1.3",null,"As built submission, review and approval","Sum",{"v":1,"d":"1.00"}]
[]
[1.2,null,"Other (Specify below)"]
[]
["1.2.1"]
[]
["1.2.2"]
[]
["1.2.3"]
[]
["1.2.4"]
[]
["1.2.5"]
[]
[null,null,"Total amount carried forward to Schedule E Summary"]
[]
[2,null,"SECTION 2 : DEMOLITIONS / ALTERATIONS"]
[]
[null,null,"Preambles"]
[null,null,"Tenderers are advised to study the applicable engineering and  architectural drawings, specifications and the \"Model Preambles for  Trades\" before pricing this bill"]
[]
[null,null,"Supplementary preambles"]
[]
[null,null,"Descriptions and preambles in other bills  "]
[null,null,"Reference shall be made to other trades and preambles for preambles and full descriptions of items not fully described  in this trade which shall apply equally to the work in this trade, unless otherwise described."]
[]
[null,null,"General "]
[null,null,"The Tenderer is advised to visit the site and satisfy himself as to the nature and extent of the work to be done and the value of the materials contained in the buildings or portions of the buildings to be demolished.  No claim for a compensation event in respect of the nature and extent of the work or of inferior or damaged materials will be entertained"]
[]
[null,null,"The attention of tenderers is drawn to the fact that unless otherwise stated loose furniture, kitchen equipment, apparatus, machinery, etc. is to remain the property of the Rand Water and does not fall within the scope of this contract."]
[]
[null,null,"Tenderers are advised that parts of the existing buildings on the site, including the existing water supply and sanitary systems will be in use during the progress of the Works and any disconnections, etc. that may be necessary must be  made as directed by the Project Manager and in such a  manner as to cause the minimum of inconvenience to the  occupants of the buildings"]
[]
[null,null,"Notices  "]
[null,null,"Special care shall be exercised during the progress of the  work to ensure that any electrical installations, water supply  pipes, telephone and other services which may be  encountered are not interfered with and notice shall be given  to the Project Manager if any disconnection or alterations become necessary"]
[]
[null,null,"Demolitions  "]
[null,null,"All demolitions work shall be carried out in accordance with  the Local By-laws and to the requirements of the Local Health AuthoritiesThe Contractor shall take all precautions  necessary to prevent any nuisance from dust whilst carrying  out the work, including watering of the works with a jet or  spray"]
[]
[null,null,"Brickwork"]
[null,null,"Where sizes in descriptions are given in brick units, \"one brick\"  shall represent the length and \"half brick\" the width of a brick "]
[]
[null,null,"Old materials to become the property of the Contractor "]
[null,null,"Old materials from alterations, except where described to be re-used or handed over to the Project Manager, become the property of the Contractor"]
[]
[null,null,"Old materials from the alterations, except where described  to be re-used or handed over to the Project Manager, as  well as all rubbish, etc., must be regularly carted from site and not be allowed to accumulate on or around the site."]
[]
[null,null,"Old materials not to be re-used   "]
[null,null,"None of the old materials is to be used for new work except where specifically described as being set aside for re-use"]
[]
[null,null,"Handing over of materials "]
[null,null,"Where certain materials or articles from demolitions or alterations are descibed as to be handed over by the Contractor to the Project Manager such materials or  articles shall be properly stored by the Contractor, until  handing over thereof."]
[]
[null,null,"The Contractor must obtain an official receipt listing the materials or articles and dates of handing over.  If the Contractor fails to submit the receipt when requested, it  shall be deemed that the materials or articles are still in his posession and he will be liable to the Chief Director for the  full replacement value thereof, which amount will be deducted from any monies due to the Contractor"]
[]
[null,null,"Protection  "]
[null,null,"In taking down and removing existing work the utmost care  is to be observed to avoid any structural or other damage to  the remaining portions of the building and the work is to be  carried out in a workmanlike, practical and safe manner under the constant supervision of a competent foreman"]
[]
[null,null,"The contractor must also protect all work not removed such  as walls, floors, doors, windows, or other joinery, loose and fixed fittings and electrical appliances, etc. from damage  during the progress of the work and provide all necessary materials for doing so"]
[]
[null,null,"The Contractor will be held solely responsible for any  damage to persons or property and for the safety of the  structure throughout the whole of this contract and must  make good at his own expense any damage that may occur.  He shall allow for protecting and indemnifying persons using  or passing through the existing buildings from injury and by  necessary barriers, signs, etc"]
[]
[null,null,"Making good damaged work  "]
[null,null,"Making good at the junction of new and existing work shall include for piercing out, cutting through or removing short lengths of existing material, for supplying short lengths of  new material and for jointing to match existing"]
[]
[null,null,"Existing and adjoining buildings, etc.  "]
[null,null,"In taking down and removing existing work the utmost care must be observed to avoid any structural or other damage to the remaining portions of the building or adjoining buildings, boundary walls, pavings, roadways, etc, and the Contractor shall provide all shoring, needling, strutting, etc, to ensure the stability of all structures during demolition or alteration  work. The Contractor must cover up and protect from  damage all work not removed and must make good at his  own expense any damage that may occur"]
[]
[null,null,"Forming new openings or altering openings in existing walls  "]
[null,null,"Descriptions for forming new openings or altering openings  in existing walls shall be deemed to include breaking out for  and forming new brick, in-situ concrete or pre-stressed concrete lintels including all reinforcement, formwork,  turning pieces, etc, building up jambs or portions of  openings as described with brickwork or blockwork properly  toothed and bonded to existing, building cavities or hollow  walls solid where necessary and making good finishes all round on both sides and into reveals as described"]
[]
[null,null,"Building up openings  "]
[null,null,"Descriptions of building up existing openings, where given in number, shall be deemed to include preparing existing surfaces all round, brickwork or blockwork, properly toothed and bonded to existing, wedging up and making good  finishes on both sides as described"]
[]
[null,null,"Site works  "]
[null,null,"Hacking up gravel, concrete, bituminous or other paving  shall include for grubbing up the sub-base and brick or concrete kerb"]
[]
[null,null,"Pulling down boundary, retaining walls, fencing, etc, shall include for grubbing up all bricks, concrete and reinforced concrete foundations, bases, etc"]
[]
[null,null,"All voids in ground consequent upon the pulling or cutting  down are to be filled in with clean earth, well consolidated  and rammed up to finished ground level"]
[]
[null,null,"Plant and Scaffolding  "]
[null,null,"The Contractor shall provide, maintain and remove from site if no longer required, all plant and scaffolding for the proper execution of the works"]
[]
[null,null,"Dimensions  "]
[null,null,"The Contractor is advised to take all dimensions affecting  the existing buildings on the site, as he will be held solely responsible for all new work being of the correct sizes"]
[]
[null,null,"Removal of ceilings  "]
[null,null,"The Contractor is to ensure compliance with all relevant by-laws and legislation in terms of taking down, temporary storing on site, loading and final removal from site of ceilings with asbestos cement content"]
[]
[null,null,"NOTE: "]
[null,null,"All sizes and dimensions stated herein are approximate and deemed only sufficient to identify the item of work concerned"]
[]
[null,null,"All new finishes are measured in the relevant trades for new work"]
[]
[2.1,null,"TEMPORARY BARRIERS, SCREENS, ETC "]
[]
["2.1.1",null,"Temporary barriers, screens, etc including removal "]
[]
["2.1.1.1",null,"Dust screen 2800mm high between concrete floor and ceiling formed of suitable timber framing with 375 micron polyethylene sheeting stapled on including corners, ends, etc","Sum",1]
[]
[]
[2.2,null,"REMOVAL OF EXISTING WORK "]
[]
[]
["2.2.1",null,"Taking out and removing doors, windows, etc from partitions "]
[]
["2.2.1.1",null,"Aluminium single door and aluminium door frame not exceeding 2,5m2","No",2]
[]
[]
["2.2.2",null,"Taking down and removing roofs, floors, panelling, ceilings, partitions, etc "]
[]
["2.2.2.1",null,"Assesment of  existing 1200x600mm suspended ceiling boards","m²",{"$f":"19.73+7.31","v":27.04}]
[]
["2.2.2.2",null,"Removing of damaged 1200x600mm suspended ceiling boards (replacement measured elsewhere)","Sum",1]
[]
["2.2.2.3",null,"Existing ceiling cornices to be removed","m",{"$f":"4.57+4.57+4.57+4.57+4.57+4.57+2.88+2.88+1.35+1.35+1.6+1.6","v":39.080000000000005}]
[]
["2.2.2.4",null,"Plasterboard partitioning 2800mm high including doors, e.t.c","m",4.57]
[]
["2.2.2.5",null,"Plasterboard partitioning for new door openings (1910x2190mm)","m²",2.5]
[]
["2.2.3",null,"Taking out and removing joinery fittings etc "]
[]
["2.2.3.1",null,"Existing laboratory countertops and steel frames ","m",14]
[]
[]
["2.2.4",null,"Taking up and removing vinyl wall or floor coverings, carpeting, etc "]
[]
["2.2.4.1",null,"Floor covering including preparing screed for new floor covering","m²",20]
[]
["2.2.4.2",null,"Wall covering including preparing surfaces for new wall covering","m²",45]
[]
["2.2.5",null,"Hacking up/off and removing tile floor and wall finishes including  removing mortar bed or backing and preparing concrete or brick surfaces for new screed, plaster or tile finishes "]
[]
["2.2.5.1",null,"Tiles on floors","m²",8]
[]
["2.2.5.2",null,"Tiles on masonry walls","m²",18]
[]
["2.2.5.3",null,"Tiles on drywall partitioning","m²",18]
[]
["2.2.6",null,"Taking out and removing piping, sanitary fittings, etc including disconnecting and closing off piping  from fittings  and  making good floor and wall finishes  "]
[]
["2.2.6.1",null,"Sink including all taps, valves, piping & any other fittings attached to the sink","No",1]
[]
[]
[2.3,null,"PREPARATORY WORK TO EXISTING SURFACES "]
[]
["2.3.1",null,"Making good defects in existing screeded floors with an approved cementious compound ","sum",1]
[]
[2.4,null,"MAKING GOOD OF FINISHES ETC "]
[]
["2.4.1",null,"Making good internal cement plaster"]
[]
["2.4.1.1",null,"Making good to face of masonry wall where 2.8m high plasterboard drywall partitioning was removed","No",1]
[]
["2.4.1.2",null,"Making good to face of masonry wall where tiled finish was removed","m²",18]
[]
["2.4.2",null,"Making good screed  "]
[]
["2.4.2.1",null,"Floors in patches ","m²",28]
[]
["2.4.3",null,"Making good drywall partitioning "]
[]
["2.4.3.1",null,"Making good of 2.8m high drywall partitioning where cross wall was removed","No",1]
[]
["2.4.3.2",null,"Making good to face of drywall partitioning where tiled finish was removed","m²",18]
[]
[null,null,"Total amount carried forward to Schedule E Summary"]
[]
[3,null,"SECTION 3 : CARPENTRY AND JOINERY"]
[]
[null,null,"Preambles"]
[null,null,"Tenderers are advised to study the applicable engineering and  architectural drawings, specifications and the \"Model Preambles for  Trades\" before pricing this bill"]
[]
[null,null,"Supplementary preambles"]
[]
[null,null,"Joinery: "]
[null,null,"Descriptions of frames shall be deemed to include frames, transomes, mullions, rails, etc "]
[]
[null,null,"Descriptions of hardwood joinery shall be deemed to include pelleting of bolt holes "]
[]
[null,null,"Fixing "]
[null,null,"Items described as \"nailed\" shall be deemed to be fixed with hardened steel nails or shot pins to brickwork or concrete "]
[]
[null,null,"Decorative laminate finish:  "]
[null,null,"Laminate finish shall be glued under pressure.  Edge strips shall be butt jointed at junctions with adjacent similar finish "]
[]
[3.1,null,"WORKTOPS"]
[]
[null,null,"Laboratory worktops"]
[]
["3.1.1",null,"750mm Wide Corian acrylic resin counter top at various heights with 150mm high, 15mm thick moulded splashback with 30mm rounded edges fixed to steel frame (frame measured elsewhere) with superwood timber frame supports. Colour: Abalone or equal and approved."]
[]
["3.1.1.1",null,"Counter tops 900mm high","m",{"$f":"4.57+4.57+4.32","v":13.46}]
[]
["3.1.1.2",null,"Counter tops  780mm high","m",4.57]
[]
[]
[3.2,null,"SHELVING UNITS"]
[]
["3.2.1",null,"Postformed melamine clad chipboard shelf with concealed edges fixed to drywall partitioning wall with  2x off suitable floating shelf brakcets to approval."]
[]
["3.2.1.1",null,"Shelving unit overall size 450mm long x 140mm wide","No",2]
[]
[3.3,null,"FURNITURE"]
[]
["3.3.1",null,"Installation of laboratory floor standing cupboards and wall mounted cabinets as supplied by the client","Sum",1]
[]
[]
[null,null,"Total amount carried forward to Schedule E Summary"]
[]
[4,null,"SECTION 4 : CEILINGS, PARTITIONS AND ACCESS FLOORING"]
[]
[null,null,"Preambles"]
[null,null,"Tenderers are advised to study the applicable engineering and  architectural drawings, specifications and the \"Model Preambles for  Trades\" before pricing this bill"]
[]
[null,null,"Supplementary preambles"]
[]
[null,null,"Descriptions: "]
[null,null,"Items described as \"nailed\" shall be deemed to be fixed with hardened steel nails or pins or shot pinned to brickwork or concrete "]
[]
[null,null,"Items described as \"plugged\" shall be deemed to include screwing to fibre, plastic or metal plugs at not exceeding 600mm centres, and where described as \"bolted\" the bolts have been given elsewhere "]
[]
[4.1,null,"PARTITIONING, ETC."]
[]
["4.1.1",null,"90mm Thick rodent proof Class B1 drywall partitioning system one coat smooth plaster skim coat, 1 hour fire rating, sound reduction index  +/- 48D and acoustic sealing between track, floor ceiling and abutment joints.  "]
[]
["4.1.1.1",null,"Closing up opening where aluminium single door and aluminium door frame not exceeding 2,5m2 was removed","No",1]
[]
[4.2,null,"CEILINGS, ETC."]
[]
["4.2.1",null,"Replacement of ceiling panels that are found to be damaged to match the existing laboratory ceiling panels (removal and assesment measured elsewhere)","Sum",1]
[]
[4.3,null,"CORNICES, ETC."]
[]
["4.3.1",null,"Ceiling cornices to match existing surrounding laboratory cornices to be installed","m",{"$f":"4.57+4.57+4.57+4.57+1.6+1.6+4.32+4.32","v":30.120000000000005}]
[]
[null,null,"Total amount carried forward to Schedule E Summary"]
[]
[5,null,"SECTION 5 : FLOOR COVEREING AND WALL LININGS"]
[]
[null,null,"Preambles"]
[null,null,"Tenderers are advised to study the applicable engineering and  architectural drawings, specifications and the \"Model Preambles for  Trades\" before pricing this bill"]
[]
[null,null,"Supplementary preambles"]
[]
[null,null,"Fixing"]
[null,null,"Floor coverings, wall linings, etc shall, where applicable, be fixed with adhesive as recommended by the manufacturers of the flooring, linings, etc"]
[]
[5.1,null,"FLOOR COVERINGS"]
[]
["5.1.1",null,"2,5mm Thick fully-flexible vinyl sheeting  with welded joints fixed with adhesive  according to the manufacturer's specifications and  instructions . Colour to rand water architects approval"]
[]
["5.1.1.1",null,"On existing floors","m²",{"$f":"19.73+7.31","v":27.04}]
[]
[5.2,null,"WALL LININGS"]
[]
[null,null,"Internal:"]
[]
["5.2.1",null,"2,5mm Thick fully-flexible vinyl sheeting  with welded joints fixed with adhesive  according to the manufacturer's specifications and  instructions. Colour to rand water architects approval"]
[]
["5.2.1.1",null,"On existing masonry wall","m²",{"$f":"ROUND((4.32+1.6+4.57)*2.8,2)","v":29.37}]
[]
["5.2.1.2",null,"On existing drywall partitioning","m²",{"$f":"ROUND((4.57+4.57+4.57+4.32+1.6)*2.8,2)","v":54.96}]
[]
[5.3,null,"SKIRTINGS, NOSINGS, ETC "]
[]
["5.3.1",null,"Vinyl skirtings fixed with adhesive "]
[]
["5.3.1.1",null,"150mm High vinyl skirtings","m",{"$f":"4.57+4.57+4.57+4.57+1.6+1.6+4.32+4.32","v":30.120000000000005}]
[]
[5.4,null,"POLISH, SEALERS, ETC "]
[]
["5.4.1",null,"Two coats dressing on vinyl surfaces (stripping and sealing)  "]
[]
["5.4.1.1",null,"On vinyl covered floors ","m²",27.04]
[]
["5.4.1.2",null,"On vinyl covered walls","m²",{"$f":"29.37+54.96","v":84.33}]
[]
[null,null,"Total amount carried forward to Schedule E Summary"]
[]
[6,null,"SECTION 6 : IRONMONGERY"]
[]
[null,null,"Preambles"]
[null,null,"Tenderers are advised to study the applicable engineering and  architectural drawings, specifications and the \"Model Preambles for  Trades\" before pricing this bill"]
[]
[null,null,"Supplementary preambles"]
[]
[null,null,"Finishes to ironmongery "]
[null,null,"Where applicable finishes to ironmongery are indicated by suffixes in accordance with the following list:  "]
[]
[null,null,"BS Satin bronze lacquered CH Chromium plated  "]
[]
[null,null,"SC Satin chromium plated  "]
[]
[null,null,"SE Silver enamelled  "]
[]
[null,null,"GE Grey enamelled  "]
[]
[null,null,"AS Anodised silver  "]
[]
[null,null,"AB Anodised bronze  "]
[]
[null,null,"AG Anodised gold  "]
[]
[null,null,"ABL Anodised black  "]
[]
[null,null,"PB Polished brass  "]
[]
[null,null,"PL Polished and lacquered  "]
[]
[null,null,"PT Epoxy coated  "]
[]
[null,null,"SD Sanded "]
[]
[6.1,null,"KNOBS AND PULL HANDLES"]
[]
["6.1.1",null,"1x Pair off flush pull handels installed on aluminium sliding door as per door manufacturers specifications and details","No",1]
[]
["6.1.2",null,"Flush pull handle installed on aluminium sliding door on the opposite stile, facing the passage, as per door manufacturers specifications and details","No",1]
[]
[6.2,null,"SUNDRIES "]
[]
["6.2.1",null,"Sliding door, door stoppers as per door manufacturers specifcations and details","No",1]
[]
[]
[7,null,"SECTION 7 : METALWORK"]
[]
[null,null,"Preambles"]
[null,null,"Tenderers are advised to study the applicable engineering and  architectural drawings, specifications and the \"Model Preambles for  Trades\" before pricing this bill"]
[]
[7.1,null,"ALUMINIUM SHOP FRONTS, DOORS, WINDOWS, ETC "]
[]
["7.1.1",null,"Doors"]
[]
[null,null,"Heavy duty natural anodized aluminium sliding doors complete with all fittings and ironmongery preglazed with 6,0mm thick tinted laminated safety glass (measured elsewhere) on the top panel only, 2mm thick mirror finished stainless steel bottom panel, complete with ironmongery and fittings as per manufacturers specifications and scope of work requirements, including sealing with approved silicone sealant and fixed to drywall partitioning that has been reinforced with 50x50mm steel square tubing for the door installation"]
[]
["7.1.1.1",null,"Single door size 1910 x 2190mm high ","No",1]
[]
[7.2,null,"COUNTER TOP STEEL FRAMES"]
[]
["7.2.1",null,"Steel frames sized to suit 750mm wide corian counter tops at varying heights. Note frames to be suitably sized to allow for under counter cabinets supplied by the client."]
[]
["7.2.1.1",null,"Counter tops 900mm high","m",{"$f":"4.57+4.57+4.32","v":13.46}]
[]
["7.2.1.2",null,"Counter tops  780mm high","m",4.57]
[]
[null,null,"Total amount carried forward to Schedule E Summary"]
[]
[8,null,"SECTION 8 : GLAZING"]
[]
[null,null,"Preambles"]
[null,null,"Tenderers are advised to study the applicable engineering and  architectural drawings, specifications and the \"Model Preambles for  Trades\" before pricing this bill"]
[]
[8.1,null,"ALUMINIUM SHOP FRONTS, DOORS, WINDOWS, ETC "]
[]
[null,null,"Doors"]
[]
["8.1.1",null,"Approved 6,0mm thick tinted laminated safety glass within natural anodized aluminium sliding doors. (Note: Tinting percentage to ensure no natural or mechanical light can pass through)"]
[]
["8.1.1.1",null,"Overall single door size 1910 x 2190mm high (Top glazing panel only)","No",1]
[]
[]
[null,null,"Total amount carried forward to Schedule E Summary"]
[]
[9,null,"SECTION 9: PAINTWORK"]
[]
[null,null,"Preambles"]
[null,null,"Tenderers are advised to study the applicable engineering and  architectural drawings, specifications and the \"Model Preambles for  Trades\" before pricing this bill"]
[]
[null,null,"PAINTWORK, ETC TO NEW WORK ON "]
[]
[9.1,null,"METAL SURFACES WITH "]
[]
["9.1.1",null,"Prepare surfaces and apply one coat metal primer, one coat Universal undercoat and one coat enamel paint  colour to rand water architects approval"]
[]
["9.1.1.1",null,"On countertop steel framework","Sum",1]
[]
["9.1.1.2",null,"Sliding door steel support frame","Sum",1]
[]
[]
[10,null,"SECTION 10: MISCELLANEOUS"]
[]
[null,null,"Preambles"]
[null,null,"Tenderers are advised to study the applicable engineering and  architectural drawings, specifications and the \"Model Preambles for  Trades\" before pricing this bill"]
[]
[10.1,null,"Removal and storage of fridges, equipment, shelving units etc. as per the clients requirements","Sum",1]
[]
[10.2,null,"Positioning and or installation of fridges, equipment as per the clients requirements","Sum",1]
[]
[10.3,null,"Removal, storing and reinstallation of window blind as per clients requirements","No",1]
[]
[10.4,null,"All other building work not stated above which may be required to complete the project (including risk mitigation and safety)"]
[null,null,"List below:"]
[]
["10.4.1"]
[]
["10.4.2"]
[]
["10.4.3"]
[]
["10.4.4"]
[]
["10.4.5"]
[]
[null,null,"Total amount carried forward to Schedule B Summary"]
[]
["SCHEDULE E  SUMMARY "]
["No","Payment refers","Description",{"$nulls":3},"Amount"]
[1,null,{"$f":"C8","v":"SECTION 1 : DESIGN"}]
[{"$f":"A436+1","v":2},null,{"$f":"C42","v":"SECTION 2 : DEMOLITIONS / ALTERATIONS"}]
[3,null,{"$f":"C196","v":"SECTION 3 : CARPENTRY AND JOINERY"}]
[4,null,{"$f":"C238","v":"SECTION 4 : CEILINGS, PARTITIONS AND ACCESS FLOORING"}]
[5,null,{"$f":"C266","v":"SECTION 5 : FLOOR COVEREING AND WALL LININGS"}]
[6,null,{"$f":"C308","v":"SECTION 6 : IRONMONGERY"}]
[7,null,{"$f":"C353","v":"SECTION 7 : METALWORK"}]
[8,null,{"$f":"C376","v":"SECTION 8 : GLAZING"}]
[9,null,{"$f":"C392","v":"SECTION 9: PAINTWORK"}]
[10,null,{"$f":"C408","v":"SECTION 10: MISCELLANEOUS"}]
[null,"Total amount excluding Value-Added Tax (VAT) to be carried to Summary of Price Schedules "]

{"sheet":"Schedule C - ELECTRICAL","index":3,"n_rows":61,"n_cols":7,"rows_kept":61,"merged":[[1,0,2,1],[1,2,2,5],[2,9,2,11],[3,9,3,11],[4,0,5,0],[4,1,5,1],[4,5,5,5],[46,2,46,5],[54,2,54,5],[55,0,55,6],[56,2,56,5],[57,2,57,5],[58,2,58,5],[59,2,59,5],[60,1,60,5]]}
[{"$nulls":6},10404747]
[null,null," ALTERATIONS FOR CHEMISTRY LABORATORY - VEREENIGING ANALYTICAL SERVICES  ",{"$nulls":3},"C - ELECTRICAL"]
[]
[{"$nulls":6},"Schedule H: ELECTRICAL"]
["Item   No.","Payment Refers","Description","Unit","Qty","Rate","Total Amount"]
[]
["1.",null,"Section 1: Design, Supply and Testing of the Equipment "]
[]
[null,null,"Specification  "]
[]
[null,null,"All electrical work to be carried out in accordance the stipulations as per SANS 0142 -1/2 "]
[]
[null,null,"Provide COC certificate for electrical work"]
[]
[null,null,"Design & Services  "]
[]
["1.1",null,"HVAC Installation"]
[]
["1.1.1"]
[]
[null,null,"Electrical assessment of HVAC Supply ","Sum",1]
[]
[null,null,"Installation of HVAC Isolators and breakers ","Sum",1]
[]
["1.1.2",null,"Electrical sockets "]
[]
[null,null,"New Microscope Room "]
[]
["1.1.2.1",null," 6 x UPS plugs within the existing power skirting on the eastern face of the room","Sum",6]
[]
["1.1.2.2",null,"2 x dirty power  plugs within the existing power skirting on the eastern face of the room","Sum",3]
[]
[]
[]
[null,null,"PCR Room "]
[]
["1.1.2.3",null,"10 x UPS power plugs within the new power skirting on the western face of the room ","Sum",10]
[]
["1.1.2.4",null,"3 x dirty power plugs within the new power skirting on the western face of the room ","Sum",3]
[]
["1.2.1",null,"Lighting "]
[]
["1.2.1.1",null,"Lux level assessment will be done prior to installation of lighting as per regulation. ","Sum",1]
[]
["1.2.1.2",null,"Lux level testing to be done on completion of work and results presented to Rand Water","Sum",1]
[]
[null,null,"Total amount carried forward to Schedule F Summary",{"$nulls":3},"R"]
[]
[2,null,"Section 2: Installation, Testing, Commission and Putting into Service  "]
[]
[2.1,null,"Installation and putting into service of the Electrical equipment ","Sum",1]
[2.2,null,"Maintenance during the Defects Liability Period","Sum",1]
[2.3,null,"Compilation of As Built (record) drawings, close-out reports","Sum",1]
[2.4,null,"All other actions not stated above which may be required to complete and commission the installation (including risk mitigation and safety)","Sum",1]
[null,null,"Total amount carried forward to Schedule C Summary",{"$nulls":3},"R"]
["SCHEDULE F SUMMARY "]
["No","Payment refers","Description",{"$nulls":3},"Amount"]
[1,null,"Design, Supply and Testing of the Equipment"]
[2,null,"Installation, Testing, Commission and Putting into Service  "]
[]
[null,"Total amount excluding Value-Added Tax (VAT) to be carried to Summary of Price Schedules "]

{"sheet":"Schedule D - MECHANICAL ","index":4,"n_rows":90,"n_cols":7,"rows_kept":90,"merged":[[1,0,2,1],[1,2,2,5],[2,9,2,11],[3,9,3,11],[4,0,5,0],[4,1,5,1],[4,5,5,5],[50,2,50,5],[71,2,71,5],[81,2,81,5],[83,0,83,6],[84,2,84,5],[85,2,85,5],[86,2,86,5],[87,2,87,5],[88,2,88,5],[89,2,89,5],[90,2,90,5]]}
[{"$nulls":6},10404747]
[null,null," ALTERATIONS FOR CHEMISTRY LABORATORY - VEREENIGING ANALYTICAL SERVICES  "]
[{"$nulls":6},"D - MECHANICAL"]
[{"$nulls":6},"Schedule J: MECHANICAL"]
["Item   No.","Payment Refers","Description","Unit","Qty","Rate","Total Amount"]
[]
["1.",null,"Section 1: Design, Supply and Testing of the Equipment at the Factory "]
[]
[null,null,"Design & Services  "]
[]
["1.1",null,"HVAC Installation"]
[]
["1.1.1",null,"Structural Assessment"]
[]
[null,null,"Structural assessment in supporting of the Air Conditioning systems equipment, ducting and pipes etc. ","Sum",1]
[]
[null,null,"Modification recommendations including detail analysis, calculations and drawings etc. to be supplied. ","Sum",1]
[]
["1.1.2",null,"Ducting"]
[]
[null,null,"Descriptions of ductwork shall be deemed to include joining materials, duct fittings, necessary joints, connections, rods, hangers, rivets, screws, bolts sealants, couplers, stiffeners, access inspection and other fastening equipment.","Sum",1]
[]
[null,null,"Descriptions of fittings shall be deemed to include for cutting, forming openings and joining to ducting.","Sum",1]
[]
[null,null,"Fire dampers shall be installed where required and shall be deemed to include, controls & instrumentation, joining materials, necessary joings, connections, access inspection and other fastening equipement.","Sum",1]
[]
["1.1.3",null,"Air Diffusion"]
[]
[null,null,"Description of air terminals, grilles, , disc valves, louvers and the like shall be deemed to include necks, frames, supports and flexible connections. ","Sum",1]
[]
["1.1.4",null,"Fans"]
[]
[null,null,"Description of assemblies shall be deemed to include supports from the structure, flexible or other connections to ductwork, vibration isolation mounting, structural frames and electrical interface equipment included.","Sum",1]
[]
["1.1.5",null,"Indoor and Outdoor Units"]
[]
[null,null,"Description of assemblies shall be deemed to include supports from the structure, flexible or other connections, complete with all air conditioning unit, wired remote controller, controls & instrumentation, drain pumps, drip trays, piping, controls etc. to form a complete and fully functional system.","Sum",1]
[]
["1.1.6",null,"Sound Attenuators "]
[]
[null,null,"Descriptions of sound attenuators shall be deemed to include flanged or flexible connections to ductwork and supports from the structure.","Sum",1]
[]
["1.1.7",null,"Piping "]
[]
[null,null,"Description of piping shall be deemed to include joints, flanges, fittings, supports, brackets, paintings etc.","Sum",1]
[]
["1.1.8",null,"Valves "]
[]
[null,null,"Description of valves shall be deemed to include flanged or screwed connections to piping, reducers, supports, etc.","Sum",1]
[]
[null,null,"Total amount carried forward to Schedule G Summary"]
[]
["2.",null,"Section 2: Manufacture, Supply and Delivery of Equipment "]
[]
["2.1",null,"HVAC System"]
[]
["2.1.1",null,"Air Conditioning System: "]
[]
[null,null,"Manufacture, supply and deliver of a air conditioning system complete with drain pumps, drip trays, piping, controls & instrumentation, temperature monitoring, supports, hangers, concrete base, fans, sound attemuators, dampers, ducting etc. to form a complete and fully operational system."]
[]
[null,null,"Allow all for electrical works, controls & instrumentation and items associated with the installation of the Air Conditioning system.","Sum",1]
[]
["a)",null,"Analytical Services alterations and maintenance work to the existing Post PCR room (B121), existing Microscope room (B125) and existing Small Store (B113)"]
[]
[null,null,"          Indoor unit midwall unit (inverter)","No",1]
[null,null,"          Connected to condensing outdoor unit","No",1]
[null,null,"          Wire remote control","No",1]
[null,null,"          Piping, drip trays etc.","Sum",1]
[null,null,"          Supports, hangers and concrete base","Sum",1]
[null,null,"          Controls and instrumenetation, temperature monitoring","Sum",1]
[]
[null,null,"Total amount carried forward to Schedule G Summary"]
[]
["3.",null,"Section 3: Installation, Testing, Commission and Putting into Service  "]
[]
["3.1",null,"Installation and putting into service of the Air Conditioning system complete with piping, valves, ducts and instruments & controls, temperature monitoring, supports, hangers, concrete base etc.  ","Sum",1]
["3.2",null,"Maintenance during the Defects Liability Period","Sum",1]
["3.3",null,"Supply of three operation and maintenance manuals","No",3]
["3.4",null,"Training of operations and maintenance personnel","Sum",1]
["3.5",null,"Compilation of As Built (record) drawings, close-out reports","Sum",1]
["3.6",null,"All other actions not stated above which may be required to complete and commission the installation (including risk mitigation and safety)","Sum",1]
[null,null,"Total amount carried forward to Schedule D Summary"]
[]
["SCHEDULE G SUMMARY "]
["No","Payment refers","Description",{"$nulls":3},"Amount"]
[1,null,"Design & services, supply and testing of the equipement at the factory"]
[2,null,"Manufacture, supply and delivery of equipement"]
[3,null,"Installation, testing, commission and putting into service "]
[]
[null,null,"Total amount excluding Value-Added Tax (VAT) to be carried to Summary of Price Schedules "]

{"sheet":"Summary","index":5,"n_rows":16,"n_cols":4,"rows_kept":16,"merged":[[1,1,1,2],[2,1,3,1],[4,0,5,2],[6,0,7,0],[6,1,7,1],[6,2,7,2],[13,0,13,1],[14,0,14,1],[15,0,15,1]]}
[10404747,null,{"$f":"#REF!","v":{"$error":"#REF!"}}]
[{"$f":"#REF!","v":{"$error":"#REF!"}}]
[]
[]
["SUMMARY OF BILL OF QUANTITIES"]
[]
["SCHEDULE","DESCRIPTION","AMOUNT"]
[]
[]
["A","OHS",null,{"$f":"C10","v":{"v":0,"d":"R 0.00"}}]
["B","Architecture ",null,{"v":0,"d":"R 0.00"}]
["C","Electrical"]
["D","Mechanical"]
["SUB TOTAL "]
["ADD 15% FOR VAT"]
["TOTAL"]

{"sheet":"Mechanical","index":6,"n_rows":0,"n_cols":0,"rows_kept":0,"hidden":true,"merged":[[5,0,6,0],[5,1,6,2],[5,3,6,3],[5,4,6,4],[5,5,6,5],[5,6,6,6],[7,1,7,2],[8,1,8,2],[9,1,9,2],[10,1,10,2],[11,1,11,2],[12,1,12,2],[13,1,13,2],[14,1,14,2],[15,1,15,2],[16,0,17,0],[16,1,16,2],[16,3,17,3],[16,4,17,4],[16,5,17,5],[16,6,17,6],[16,7,17,7],[17,1,17,2],[18,0,19,0],[18,1,19,2],[18,3,19,3],[18,4,19,4],[18,5,19,5],[18,6,19,6],[18,7,19,7],[20,1,20,2],[21,1,21,2],[22,1,22,2],[23,1,23,2],[24,1,24,2],[25,1,25,2],[26,1,26,2],[27,1,27,2],[28,1,28,2],[29,1,29,2],[30,1,30,2],[31,1,31,2],[32,1,32,2],[33,1,33,2],[34,1,34,2],[35,1,35,2],[36,1,36,2],[37,0,37,5],[42,0,42,6],[45,1,45,7]]}